bitfinex/quotes_BTCUSD_20230117
["timestamp","ask_amount","ask_price","bid_price","bid_amount"]
[1673985402921,0.21021329,21347.0,21346.0,0.47776201]
[1673985403433,0.35034893,21347.0,21346.0,0.47776201]
[1673985403711,0.35034893,21347.0,21346.0,0.55076201]
[1673985403973,0.35034893,21347.0,21346.0,0.08229301]
[1673985404732,0.35034893,21347.0,21346.0,0.00929301]
[1673985404978,0.35234893,21347.0,21346.0,0.08329301]
[1673985405456,0.14213564,21347.0,21346.0,0.08329301]
[1673985406212,0.49249769,21347.0,21346.0,0.08329301]
[1673985406940,1.65939569,21347.0,21346.0,0.08329301]
[1673985407199,1.93276115,21347.0,21346.0,0.08329301]
[1673985407456,1.91290476,21347.0,21346.0,0.08329301]
[1673985407720,1.6591444,21347.0,21346.0,0.08329301]
[1673985407967,1.44904161,21347.0,21346.0,0.08329301]
[1673985408219,1.90974588,21347.0,21346.0,0.08329301]
[1673985408479,1.62960227,21347.0,21346.0,0.08329301]
[1673985408738,1.62944697,21347.0,21346.0,0.08329301]
[1673985408989,1.90959089,21347.0,21346.0,0.08329301]
[1673985409314,1.90959151,21347.0,21346.0,0.08329301]
[1673985409529,1.90959814,21347.0,21346.0,0.08329301]
[1673985409769,1.90959894,21347.0,21346.0,0.08329301]
[1673985410020,1.62944697,21347.0,21346.0,0.08329301]
[1673985410273,1.90959917,21347.0,21346.0,0.08329301]
[1673985410550,1.62944697,21347.0,21346.0,0.08329301]
[1673985411261,1.92944697,21347.0,21346.0,0.08329301]
[1673985411537,1.57926125,21347.0,21346.0,0.08329301]
[1673985414604,1.99977582,21347.0,21346.0,0.08329301]
[1673985415118,1.57926125,21347.0,21346.0,0.08329301]
[1673985416161,1.27926125,21347.0,21346.0,0.08329301]
[1673985416422,1.90751497,21347.0,21346.0,0.00929301]
[1673985416692,1.47100915,21347.0,21346.0,0.01529301]
[1673985416996,1.90920578,21347.0,21346.0,0.00929301]
[1673985417199,1.93320578,21347.0,21346.0,0.01529301]
[1673985417456,1.62909463,21347.0,21346.0,0.00929301]
[1673985418231,1.92909463,21347.0,21346.0,0.00929301]
[1673985418752,1.60295206,21347.0,21346.0,0.01529301]
[1673985419040,1.57895206,21347.0,21346.0,0.00929301]
[1673985419286,1.60295206,21347.0,21346.0,0.01529301]
[1673985419541,1.57895206,21347.0,21346.0,0.00929301]
[1673985420315,1.60295206,21347.0,21346.0,0.01529301]
[1673985420865,1.62695206,21347.0,21346.0,0.02129301]
[1673985421343,2.04746663,21347.0,21346.0,0.01438139]
[1673985421855,2.45958113,21347.0,21346.0,0.00238139]
[1673985422644,1.57895206,21347.0,21346.0,0.00238139]
[1673985422903,2.02346663,21347.0,21346.0,0.00338139]
[1673985423433,2.09816663,21347.0,21346.0,0.00338139]
[1673985424200,1.30295206,21347.0,21346.0,0.00338139]
[1673985424446,1.65311857,21347.0,21346.0,0.00338139]
[1673985424956,1.93325048,21347.0,21346.0,0.00338139]
[1673985425236,0.74422438,21347.0,21346.0,0.10153364]
[1673985425496,0.99505713,21347.0,21346.0,0.06234425]
[1673985425764,0.60423431,21347.0,21346.0,0.06234425]
[1673985426051,0.60423545,21347.0,21346.0,0.10153364]
[1673985426538,0.60423545,21347.0,21346.0,0.00346364]
[1673985426827,0.60423545,21347.0,21346.0,0.00338139]
[1673985427613,0.74427606,21347.0,21346.0,0.00338139]
[1673985427848,0.46414415,21347.0,21346.0,0.00338139]
[1673985428111,0.74427606,21347.0,21346.0,0.00338139]
[1673985428628,0.53413191,21347.0,21346.0,0.00338139]
[1673985428921,1.30301054,21347.0,21346.0,0.00338139]
[1673985429190,1.60301054,21347.0,21346.0,0.00338139]
[1673985429432,2.02352511,21347.0,21346.0,0.00338139]
[1673985430203,1.60301054,21347.0,21346.0,0.00338139]
[1673985430914,2.02367446,21347.0,21346.0,0.00338139]
[1673985432167,1.72367446,21347.0,21346.0,0.00338139]
[1673985432429,1.30301054,21347.0,21346.0,0.00338139]
[1673985432919,0.99715361,21347.0,21346.0,0.07808139]
[1673985433169,0.74480341,21347.0,21346.0,0.08776528]
[1673985433705,0.5344627,21347.0,21346.0,0.08776528]
[1673985433968,0.60462844,21347.0,21346.0,0.55623628]
[1673985434234,0.3942484,21347.0,21346.0,0.87669428]
[1673985434485,0.60462844,21347.0,21346.0,0.87669428]
[1673985435001,0.60462844,21347.0,21346.0,0.55623628]
[1673985435295,0.60462844,21347.0,21346.0,0.78069428]
[1673985435526,0.60462844,21347.0,21346.0,0.85539428]
[1673985435781,0.46438004,21347.0,21346.0,0.395158]
[1673985436038,0.74484274,21347.0,21346.0,0.0747]
[1673985436637,0.74485844,21347.0,21346.0,0.0747]
[1673985436888,0.99726695,21347.0,21346.0,0.0747]
[1673985437142,0.64668858,21347.0,21346.0,0.0747]
[1673985437798,0.99726695,21347.0,21346.0,0.0747]
[1673985437800,0.71680425,21347.0,21345.0,0.00929301]
[1673985438023,0.46289648,21346.0,21345.0,0.00929301]
[1673985438242,0.93136748,21346.0,21345.0,0.00929301]
[1673985438681,0.58069688,21346.0,21345.0,0.00929301]
[1673985439076,0.61069688,21346.0,21345.0,0.01429301]
[1673985439489,1.07916788,21346.0,21345.0,0.01429301]
[1673985440286,1.14378152,21346.0,21345.0,0.01429301]
[1673985440543,1.14378152,21346.0,21344.0,0.00946447]
[1673985440544,0.08570699,21345.0,21344.0,0.00946447]
[1673985440781,1.01721334,21345.0,21344.0,0.00946447]
[1673985441270,0.54872034,21345.0,21344.0,0.00946447]
[1673985441534,1.51970634,21345.0,21344.0,0.01446447]
[1673985442000,1.16891887,21345.0,21344.0,0.01446447]
[1673985443532,1.58958279,21345.0,21344.0,0.01446447]
[1673985443782,1.16891887,21345.0,21344.0,0.01446447]
[1673985444306,1.88958279,21345.0,21344.0,0.01446447]
[1673985444542,1.58958279,21345.0,21344.0,0.01446447]
[1673985444782,1.16891887,21345.0,21344.0,0.01446447]
[1673985445513,1.88958279,21345.0,21344.0,0.01446447]
[1673985445740,1.46891887,21345.0,21344.0,0.01446447]
[1673985445977,2.34814759,21345.0,21344.0,0.01446447]
[1673985446449,1.88958279,21345.0,21344.0,0.01446447]
[1673985447631,1.46891887,21345.0,21344.0,0.01446447]
[1673985448153,1.92748367,21345.0,21344.0,0.01446447]
[1673985449088,2.34814884,21345.0,21344.0,0.01446447]
[1673985449317,1.88958404,21345.0,21344.0,0.01446447]
[1673985450787,1.92748367,21345.0,21344.0,0.01446447]
[1673985451016,2.07748367,21345.0,21344.0,0.01446447]
[1673985451244,2.40056262,21345.0,21344.0,0.00977331]
[1673985452387,2.63499182,21345.0,21344.0,0.00496053]
[1673985452621,3.02082852,21345.0,21344.0,0.00496053]
[1673985452846,3.00524395,21345.0,21344.0,0.00496053]
[1673985453780,3.47779428,21345.0,21344.0,0.00496053]
[1673985454024,0.15,21344.0,21343.0,0.01198413]
[1673985454262,2.03212068,21344.0,21343.0,0.01198413]
[1673985454540,2.27038615,21344.0,21343.0,0.01198413]
[1673985454767,2.12038615,21344.0,21343.0,0.01198413]
[1673985455243,2.27038615,21344.0,21343.0,0.01198413]
[1673985456230,2.82993648,21344.0,21343.0,0.01198413]
[1673985457020,2.35738615,21344.0,21343.0,0.01198413]
[1673985457246,2.82993648,21344.0,21343.0,0.01198413]
[1673985458204,3.05021112,21344.0,21343.0,0.01198413]
[1673985458437,2.84166878,21344.0,21343.0,0.01198413]
[1673985458671,3.31344843,21344.0,21343.0,0.01198413]
[1673985459827,2.91606878,21344.0,21343.0,0.01198413]
[1673985460062,3.38779809,21344.0,21343.0,0.01198413]
[1673985460336,2.91606878,21344.0,21343.0,0.01198413]
[1673985460546,0.15,21343.0,21342.0,0.00601144]
[1673985460776,1.57349988,21343.0,21342.0,0.00601144]
[1673985461012,2.27033015,21343.0,21342.0,0.00601144]
[1673985461243,0.25985222,21342.0,21341.0,0.00805438]
[1673985461475,2.48696947,21342.0,21341.0,0.00805438]
[1673985462213,2.0677609,21342.0,21341.0,0.00805438]
[1673985462702,2.1547609,21342.0,21341.0,0.00805438]
[1673985462941,2.3047609,21342.0,21341.0,0.00805438]
[1673985463527,0.06629344,21339.0,21336.0,0.01323097]
[1673985463795,2.85906504,21339.0,21336.0,0.01323097]
[1673985464051,3.11948071,21339.0,21336.0,0.01323097]
[1673985464324,3.57804551,21339.0,21336.0,0.01323097]
[1673985464581,2.62580024,21339.0,21336.0,0.01323097]
[1673985464824,3.08436504,21339.0,21336.0,0.01323097]
[1673985465323,3.43332273,21339.0,21336.0,0.01323097]
[1673985465574,3.17536504,21339.0,21336.0,0.01323097]
[1673985465825,3.08436504,21339.0,21336.0,0.01323097]
[1673985466070,3.17536504,21339.0,21336.0,0.01323097]
[1673985466334,3.52434826,21339.0,21336.0,0.01323097]
[1673985466586,3.43334826,21339.0,21336.0,0.01323097]
[1673985466847,3.52434826,21339.0,21336.0,0.01323097]
[1673985467104,3.83829312,21339.0,21336.0,0.01323097]
[1673985467360,3.5803099,21339.0,21336.0,0.01323097]
[1673985467621,3.99929037,21339.0,21336.0,0.01323097]
[1673985467881,3.5753099,21339.0,21336.0,0.01323097]
[1673985468132,3.17036504,21339.0,21336.0,0.01323097]
[1673985468386,3.40036504,21339.0,21336.0,0.01323097]
[1673985468912,3.62067836,21339.0,21336.0,0.01323097]
[1673985469456,4.03965883,21339.0,21338.0,0.00578659]
[1673985469672,4.513761,21339.0,21338.0,0.00578659]
[1673985470002,3.62067836,21339.0,21338.0,0.00578659]
[1673985470511,3.21081036,21339.0,21338.0,0.00578659]
[1673985470777,3.23807798,21339.0,21338.0,0.00578659]
[1673985471086,2.95911644,21339.0,21338.0,0.00578659]
[1673985471349,3.23807798,21339.0,21338.0,0.0039385]
[1673985472121,3.25911644,21339.0,21338.0,0.0039385]
[1673985472401,3.25411644,21339.0,21338.0,0.0039385]
[1673985473155,3.53307798,21339.0,21338.0,0.0039385]
[1673985473967,3.03380312,21339.0,21338.0,0.0039385]
[1673985474194,3.17329736,21339.0,21338.0,0.0039385]
[1673985474447,2.70467236,21339.0,21338.0,0.0039385]
[1673985474675,2.70467236,21339.0,21338.0,0.00133455]
[1673985475186,2.40467236,21339.0,21338.0,0.00133455]
[1673985475447,2.05594936,21339.0,21338.0,0.00133455]
[1673985475733,1.7268186,21339.0,21338.0,0.00133455]
[1673985475992,1.58732436,21339.0,21338.0,0.00133455]
[1673985476537,0.37729344,21339.0,21338.0,0.17350455]
[1673985476794,0.37729344,21339.0,21338.0,0.24776195]
[1673985477043,0.28629344,21339.0,21338.0,1.08625362]
[1673985477314,0.28629344,21339.0,21338.0,1.56340062]
[1673985477622,0.28629344,21339.0,21338.0,1.56440062]
[1673985477623,0.36929344,21339.0,21338.0,1.56440062]
[1673985477903,0.36929344,21339.0,21338.0,2.03304762]
[1673985478426,0.28629344,21339.0,21338.0,2.03213382]
[1673985478681,0.36829344,21339.0,21338.0,1.95887642]
[1673985478979,0.28629344,21339.0,21338.0,1.95787642]
[1673985479228,0.32829344,21339.0,21338.0,1.95887642]
[1673985482069,0.32829344,21339.0,21338.0,1.95879022]
[1673985483348,0.32829344,21339.0,21338.0,0.32279255]
[1673985483603,0.67701644,21339.0,21338.0,0.00233455]
[1673985483859,1.0061472,21339.0,21338.0,0.00233455]
[1673985484129,1.28510874,21339.0,21338.0,0.00233455]
[1673985484386,1.0061472,21339.0,21338.0,0.00233455]
[1673985484896,1.28510874,21339.0,21338.0,0.00233455]
[1673985485163,1.07587998,21339.0,21338.0,0.00233455]
[1673985485426,1.54450498,21339.0,21338.0,0.00233455]
[1673985485703,2.06624688,21339.0,21338.0,0.00233455]
[1673985485935,2.06723387,21339.0,21338.0,0.00233455]
[1673985486765,1.71755008,21339.0,21338.0,0.00233455]
[1673985489136,1.71755008,21339.0,21338.0,0.00133455]
[1673985489137,1.67555008,21339.0,21338.0,0.00133455]
[1673985489436,1.76555008,21339.0,21338.0,0.00133455]
[1673985490271,1.46555008,21339.0,21338.0,0.00133455]
[1673985490524,1.76555008,21339.0,21338.0,0.00133455]
[1673985492829,2.18453055,21339.0,21338.0,0.00133455]
[1673985493091,2.18453055,21339.0,21338.0,0.00074798]
[1673985493092,1.76555008,21339.0,21338.0,0.00074798]
[1673985493380,2.64411876,21339.0,21338.0,0.00074798]
[1673985493661,1.76555008,21339.0,21338.0,0.00074798]
[1673985493876,2.22411488,21339.0,21338.0,0.00074798]
[1673985494135,2.04292018,21339.0,21338.0,0.00074798]
[1673985494398,2.18560426,21339.0,21338.0,0.00074798]
[1673985494709,1.76555008,21339.0,21337.0,0.01110804]
[1673985494919,1.09053793,21338.0,21337.0,0.01110804]
[1673985495180,2.02783193,21338.0,21337.0,0.01110804]
[1673985496451,1.60770079,21338.0,21337.0,0.01110804]
[1673985496719,1.69770079,21338.0,21337.0,0.01110804]
[1673985496996,1.39770079,21338.0,21337.0,0.01110804]
[1673985497553,1.74790313,21338.0,21337.0,0.01110804]
[1673985497783,2.02808473,21338.0,21337.0,0.02235995]
[1673985498040,2.02808473,21338.0,21337.0,0.09705995]
[1673985498041,0.87239058,21338.0,21337.0,0.09705995]
[1673985498296,0.58032657,21338.0,21337.0,0.09705995]
[1673985498604,0.44025562,21338.0,21337.0,0.09705995]
[1673985499346,0.44025562,21338.0,21337.0,0.56572895]
[1673985499607,0.44025562,21338.0,21337.0,0.41751795]
[1673985499865,0.44025562,21338.0,21337.0,0.08580804]
[1673985500151,0.58032657,21338.0,21337.0,0.08580804]
[1673985500394,0.3701816,21338.0,21337.0,0.08580804]
[1673985500656,0.87245364,21338.0,21337.0,0.08580804]
[1673985500912,0.59230209,21338.0,21337.0,0.08580804]
[1673985502756,0.87250243,21338.0,21337.0,0.08580804]
[1673985502997,0.87250757,21338.0,21337.0,0.08580804]
[1673985503490,0.59230209,21338.0,21337.0,0.08580804]
[1673985503977,1.06094909,21338.0,21337.0,0.08580804]
[1673985504221,0.59230209,21338.0,21337.0,0.08580804]
[1673985504467,0.87256652,21338.0,21337.0,0.08580804]
[1673985504717,0.59230209,21338.0,21337.0,0.08580804]
[1673985505751,0.87262679,21338.0,21337.0,0.08580804]
[1673985506025,0.87262679,21338.0,21337.0,0.24201396]
[1673985506306,0.58058386,21338.0,21337.0,0.24201396]
[1673985506564,0.58058386,21338.0,21337.0,0.71068296]
[1673985507355,0.58058386,21338.0,21337.0,0.71918296]
[1673985507607,0.44044545,21338.0,21337.0,2.07724322]
[1673985507876,0.23018629,21338.0,21337.0,2.07724322]
[1673985508420,0.44044545,21338.0,21337.0,2.07724322]
[1673985508717,0.35044545,21338.0,21337.0,2.07724322]
[1673985509459,0.043,21338.0,21337.0,2.07824322]
[1673985511008,0.39344545,21338.0,21337.0,1.9220373]
[1673985511269,0.18318629,21338.0,21337.0,1.9220373]
[1673985512825,0.043,21338.0,21337.0,1.9220373]
[1673985513336,0.043,21338.0,21337.0,1.9222013]
[1673985514376,0.043,21338.0,21337.0,2.68420299]
[1673985514640,0.043,21338.0,21337.0,3.03117029]
[1673985515155,0.043,21338.0,21337.0,3.96856122]
[1673985515689,0.043,21338.0,21337.0,4.26853401]
[1673985515940,0.04288665,21338.0,21337.0,4.41853401]
[1673985516456,0.04288665,21338.0,21337.0,3.96853401]
[1673985516732,0.04288665,21338.0,21337.0,3.03117029]
[1673985517490,0.28629344,21339.0,21337.0,3.03017029]
[1673985517757,0.007,21338.0,21337.0,1.8133106]
[1673985518087,0.28629344,21339.0,21337.0,2.5519686]
[1673985518289,0.007,21338.0,21337.0,2.2465106]
[1673985518532,0.28629344,21339.0,21337.0,2.5518686]
[1673985518792,0.28629344,21339.0,21338.0,1.63259425]
[1673985518793,0.29329344,21339.0,21338.0,1.63259425]
[1673985519367,0.29329344,21339.0,21338.0,2.56988825]
[1673985520119,0.28629344,21339.0,21338.0,2.56988825]
[1673985520374,0.29329344,21339.0,21338.0,2.58488825]
[1673985521103,0.29329344,21339.0,21338.0,2.30168825]
[1673985521904,0.29329344,21339.0,21338.0,2.58468825]
[1673985522422,0.29329344,21339.0,21338.0,2.88468825]
[1673985522958,0.29329344,21339.0,21338.0,3.03468825]
[1673985523488,0.29329344,21339.0,21338.0,2.73468825]
[1673985524207,0.29329344,21339.0,21338.0,3.03468825]
[1673985524455,0.04752402,21343.0,21339.0,0.94392242]
[1673985524707,0.04752402,21343.0,21342.0,0.4329]
[1673985524981,0.04752402,21343.0,21342.0,1.698376]
[1673985525234,0.35044545,21345.0,21342.0,1.414976]
[1673985525483,0.14018629,21345.0,21344.0,0.0747]
[1673985525808,0.14018629,21345.0,21344.0,0.55675177]
[1673985526270,0.14018629,21345.0,21344.0,0.23629377]
[1673985526525,0.14018629,21345.0,21344.0,0.23613019]
[1673985526526,0.35044545,21345.0,21344.0,0.23613019]
[1673985526789,0.42044545,21345.0,21344.0,0.23829377]
[1673985527047,0.28025916,21345.0,21344.0,0.23829377]
[1673985527564,0.35024221,21345.0,21344.0,0.23629377]
[1673985527837,0.41924221,21345.0,21344.0,0.23829377]
[1673985528867,0.41924221,21345.0,21344.0,0.23813019]
[1673985529377,0.20898305,21345.0,21344.0,0.23813019]
[1673985529903,0.20898305,21345.0,21344.0,0.55858819]
[1673985530162,0.20898305,21345.0,21344.0,0.23828708]
[1673985530675,0.20898305,21345.0,21344.0,0.55874508]
[1673985530892,0.43898305,21345.0,21344.0,0.55874508]
[1673985531934,0.53898305,21345.0,21344.0,0.55874508]
[1673985532239,0.30898305,21345.0,21344.0,0.55874508]
[1673985533010,0.30898305,21345.0,21344.0,0.23828708]
[1673985533590,0.51924221,21345.0,21344.0,0.0767]
[1673985533771,0.51923726,21345.0,21344.0,0.0767]
[1673985534028,0.37925916,21345.0,21344.0,0.0767]
[1673985534278,0.0233,21344.0,21343.0,0.468526]
[1673985534545,0.16327861,21344.0,21343.0,0.551526]
[1673985534808,0.16327861,21344.0,21343.0,0.55168927]
[1673985535061,0.16327861,21344.0,21343.0,0.87214727]
[1673985535319,0.16327861,21344.0,21343.0,1.0814899]
[1673985536083,0.20627861,21344.0,21343.0,1.5520269]
[1673985537109,0.0663,21344.0,21343.0,1.5520269]
[1673985537363,0.20627861,21344.0,21343.0,1.5520269]
[1673985537586,0.0663,21344.0,21343.0,1.5520269]
[1673985541352,0.0863,21344.0,21343.0,1.5520269]
[1673985541601,0.22627861,21344.0,21343.0,1.5520269]
[1673985543123,0.0863,21344.0,21343.0,1.5520269]
[1673985544375,0.22627861,21344.0,21343.0,1.5520269]
[1673985544932,0.22627861,21344.0,21343.0,0.6149639]
[1673985545153,0.43653777,21344.0,21343.0,0.553537]
[1673985545660,0.29655916,21344.0,21343.0,0.553537]
[1673985545933,0.57688386,21344.0,21343.0,0.553537]
[1673985546429,0.57688386,21344.0,21343.0,0.085]
[1673985546702,0.57688386,21344.0,21343.0,0.553537]
[1673985546951,0.57688386,21344.0,21343.0,0.873995]
[1673985547510,0.29655916,21344.0,21343.0,1.5841014]
[1673985547753,0.43680673,21344.0,21343.0,2.7541294]
[1673985547992,0.0863,21344.0,21343.0,2.24999046]
[1673985548513,0.12811121,21344.0,21343.0,2.24999046]
[1673985549851,0.12811121,21344.0,21343.0,2.25849046]
[1673985550392,0.12811121,21344.0,21343.0,2.25902361]
[1673985550655,0.12811121,21344.0,21343.0,2.43772361]
[1673985551144,0.12811121,21344.0,21343.0,2.08652106]
[1673985551402,0.26835878,21344.0,21343.0,2.08705421]
[1673985552138,0.12811121,21344.0,21343.0,2.08705421]
[1673985555661,0.12811121,21344.0,21343.0,2.23705421]
[1673985555922,0.12811121,21344.0,21343.0,2.61539914]
[1673985556681,0.12811121,21344.0,21343.0,3.55253932]
[1673985556929,0.12811121,21344.0,21343.0,2.61539914]
[1673985557174,0.12811121,21344.0,21343.0,3.55253207]
[1673985557682,0.12811121,21344.0,21343.0,2.61539914]
[1673985563254,0.12811121,21344.0,21343.0,2.50379914]
[1673985564485,0.12811121,21344.0,21343.0,2.61359914]
[1673985564987,0.12811121,21344.0,21343.0,3.55070901]
[1673985566708,0.12811121,21344.0,21343.0,3.37070901]
[1673985566960,0.12811121,21344.0,21343.0,2.43359914]
[1673985567708,0.12811121,21344.0,21343.0,3.37071049]
[1673985567967,0.12811121,21344.0,21343.0,2.43359914]
[1673985568757,0.12811121,21344.0,21343.0,1.83072106]
[1673985569799,0.12811121,21344.0,21343.0,1.83126794]
[1673985573737,0.12811121,21344.0,21343.0,1.51026306]
[1673985574254,0.26835878,21344.0,21343.0,0.53106101]
[1673985574513,0.26835878,21344.0,21342.0,0.468545]
[1673985574514,0.98396577,21344.0,21342.0,0.468545]
[1673985574768,0.98396577,21344.0,21342.0,0.5622558]
[1673985575018,0.35070528,21343.0,21342.0,0.5622558]
[1673985575274,0.35070528,21343.0,21342.0,0.468545]
[1673985575527,0.14028132,21343.0,21342.0,1.257562]
[1673985575796,0.14028132,21343.0,21342.0,1.259562]
[1673985576056,0.14028132,21343.0,21342.0,1.4397645]
[1673985576561,0.14028132,21343.0,21342.0,1.4377645]
[1673985576839,0.14028132,21343.0,21342.0,1.4547645]
[1673985577093,0.14428132,21343.0,21342.0,1.4547645]
[1673985577351,0.14428132,21343.0,21342.0,1.274562]
[1673985582593,0.35470528,21343.0,21342.0,1.274562]
[1673985583612,0.14428132,21343.0,21342.0,1.274562]
[1673985584375,0.004,21343.0,21342.0,1.274562]
[1673985584638,0.004,21343.0,21342.0,1.4562845]
[1673985585498,0.14428132,21343.0,21342.0,1.4562845]
[1673985585909,0.14428132,21343.0,21342.0,1.27449739]
[1673985586400,0.35470528,21343.0,21342.0,1.27449739]
[1673985588228,0.14428132,21343.0,21342.0,1.27449739]
[1673985589029,0.004,21343.0,21342.0,1.27449739]
[1673985589810,0.004,21343.0,21342.0,2.01672503]
[1673985590067,0.004,21343.0,21342.0,2.20542196]
[1673985591617,0.004,21343.0,21342.0,2.20532196]
[1673985594960,0.004,21343.0,21342.0,2.13102196]
[1673985595220,0.004,21343.0,21342.0,3.06819098]
[1673985596227,0.004,21343.0,21342.0,2.99369098]
[1673985596488,0.004,21343.0,21342.0,3.21269098]
[1673985597496,0.004,21343.0,21342.0,3.21268913]
[1673985597752,0.004,21343.0,21342.0,2.27552196]
[1673985598263,0.004,21343.0,21342.0,3.21269192]
[1673985598519,0.004,21343.0,21342.0,3.51269192]
[1673985599032,0.004,21343.0,21342.0,3.21269192]
[1673985599263,0.004,21343.0,21342.0,2.27552196]
[1673985599776,0.004,21343.0,21342.0,3.21269133]
[1673985600284,0.004,21343.0,21342.0,2.27552196]
[1673985600842,0.004,21343.0,21342.0,3.21269765]
[1673985601377,0.004,21343.0,21342.0,2.27552196]
[1673985602951,0.004,21343.0,21342.0,3.2126907]
[1673985604514,0.0341331,21343.0,21342.0,3.5126907]
[1673985605051,0.0341331,21343.0,21342.0,3.80277673]
[1673985606137,0.0341331,21343.0,21342.0,3.6626907]
[1673985606389,0.03402386,21343.0,21342.0,3.80277673]
[1673985607369,0.03402386,21343.0,21342.0,3.6626907]
[1673985608363,0.03402386,21343.0,21342.0,3.66278118]
[1673985609371,0.03402386,21343.0,21342.0,3.80286721]
[1673985610137,0.03402386,21343.0,21342.0,3.66278118]
[1673985610600,0.03402386,21343.0,21342.0,2.9164583]
[1673985612411,0.03402386,21343.0,21342.0,3.2164583]
[1673985615204,0.03402386,21343.0,21342.0,3.3664583]
[1673985615480,0.03402386,21343.0,21342.0,3.50654433]
[1673985616241,0.03402386,21343.0,21342.0,3.71667338]
[1673985616494,0.03402386,21343.0,21342.0,3.9806465]
[1673985616779,0.03402386,21343.0,21342.0,4.55074556]
[1673985617022,0.03402386,21343.0,21342.0,3.9806465]
[1673985617627,0.03402386,21343.0,21342.0,3.84056047]
[1673985618061,0.03402386,21343.0,21342.0,3.54056047]
[1673985618598,0.03402386,21343.0,21342.0,3.84056047]
[1673985620634,0.03402386,21343.0,21342.0,3.9806465]
[1673985621129,0.03402386,21343.0,21342.0,4.0904465]
[1673985622924,0.03402386,21343.0,21342.0,4.30057555]
[1673985623186,0.03402386,21343.0,21342.0,4.66413371]
[1673985623715,0.03402386,21343.0,21342.0,4.66409249]
[1673985624006,0.03402386,21343.0,21342.0,4.0904465]
[1673985624723,0.03402386,21343.0,21342.0,5.32389751]
[1673985624972,0.03402386,21343.0,21342.0,5.46347401]
[1673985625213,0.03402386,21343.0,21342.0,5.18381148]
[1673985625764,0.03402386,21343.0,21342.0,5.46347401]
[1673985626002,0.03402386,21343.0,21342.0,5.18381148]
[1673985626254,0.03402386,21343.0,21342.0,5.32373318]
[1673985626751,0.03402386,21343.0,21342.0,5.18381148]
[1673985627492,0.03402386,21343.0,21342.0,5.32351623]
[1673985627742,0.03402386,21343.0,21342.0,5.32348046]
[1673985628264,0.0339066,21343.0,21342.0,5.32348046]
[1673985628546,0.0339066,21343.0,21342.0,5.3234488]
[1673985628807,0.0339066,21343.0,21342.0,5.32349329]
[1673985629795,0.0339066,21343.0,21342.0,4.66022499]
[1673985630060,0.0339066,21343.0,21342.0,4.75009594]
[1673985630585,0.0339066,21343.0,21342.0,5.32447321]
[1673985631105,0.0339066,21343.0,21342.0,4.66527321]
[1673985631373,0.0339066,21343.0,21342.0,4.52533774]
[1673985631666,0.0339066,21343.0,21342.0,4.09092479]
[1673985632183,0.0339066,21343.0,21342.0,4.66534852]
[1673985632716,0.0339066,21343.0,21342.0,4.36534852]
[1673985633123,0.0339066,21343.0,21342.0,1.97979908]
[1673985633429,0.0339066,21343.0,21342.0,1.65934108]
[1673985635242,0.0339066,21343.0,21342.0,1.65943581]
[1673985635502,0.0339066,21343.0,21342.0,2.59659717]
[1673985635748,0.0339066,21343.0,21342.0,2.45399598]
[1673985636039,0.0339066,21343.0,21342.0,3.39115388]
[1673985637032,0.0339066,21343.0,21342.0,2.45399598]
[1673985637034,0.0339066,21343.0,21342.0,2.45390125]
[1673985637286,0.0339066,21343.0,21342.0,2.12494325]
[1673985637543,0.0339066,21343.0,21342.0,1.65084108]
[1673985638054,0.0339066,21343.0,21342.0,1.65093581]
[1673985638584,0.17418792,21343.0,21342.0,1.65084108]
[1673985638847,0.17418792,21343.0,21342.0,1.17363939]
[1673985639103,0.17418792,21343.0,21342.0,1.17390105]
[1673985639412,0.17418792,21343.0,21342.0,1.2438563]
[1673985640236,0.17418792,21343.0,21342.0,1.24411796]
[1673985640817,0.17418792,21343.0,21342.0,1.2438563]
[1673985641084,0.17418792,21343.0,21342.0,1.1340563]
[1673985641314,0.0339066,21343.0,21342.0,1.13431796]
[1673985644392,0.0339066,21343.0,21342.0,1.1340563]
[1673985644626,0.0339066,21343.0,21342.0,1.13431796]
[1673985646384,0.0339066,21343.0,21342.0,1.1340563]
[1673985653615,0.0339066,21343.0,21342.0,1.72065799]
[1673985653874,0.0339066,21343.0,21342.0,2.34961599]
[1673985654144,0.0339066,21343.0,21342.0,3.2867512]
[1673985655462,0.0339066,21343.0,21342.0,3.53631552]
[1673985655720,0.03380144,21343.0,21342.0,3.89644457]
[1673985655982,0.03380144,21343.0,21342.0,3.5463512]
[1673985656321,0.03380144,21343.0,21342.0,3.68631552]
[1673985659566,0.03380144,21343.0,21342.0,3.5463512]
[1673985659833,0.03380144,21343.0,21342.0,3.68631552]
[1673985660108,0.03380144,21343.0,21342.0,3.5463512]
[1673985660358,0.03380144,21343.0,21342.0,3.68631552]
[1673985660611,0.03380144,21343.0,21342.0,3.5463512]
[1673985661409,0.03380144,21343.0,21342.0,2.60921599]
[1673985661667,0.03380144,21343.0,21342.0,3.54633131]
[1673985661917,0.03380144,21343.0,21342.0,3.54633152]
[1673985662387,0.03325714,21343.0,21342.0,3.54633152]
[1673985662636,0.03272154,21343.0,21342.0,3.54633152]
[1673985662892,0.03272154,21343.0,21342.0,3.68629584]
[1673985664707,0.03272154,21343.0,21342.0,3.54633152]
[1673985664992,0.03272154,21343.0,21342.0,3.68629584]
[1673985665253,0.03272154,21343.0,21342.0,3.54633152]
[1673985665515,0.03272154,21343.0,21342.0,3.68629584]
[1673985667567,0.03218694,21343.0,21342.0,4.26476516]
[1673985668332,0.03218694,21343.0,21342.0,3.68629584]
[1673985670788,0.03218694,21343.0,21342.0,3.66529584]
[1673985671308,0.03218694,21343.0,21342.0,3.87542489]
[1673985671569,0.03218694,21343.0,21342.0,3.25589584]
[1673985672620,0.03218694,21343.0,21342.0,3.11593152]
[1673985673156,0.03218694,21343.0,21342.0,3.41593152]
[1673985674677,1.35108892,21343.0,21339.0,0.13996432]
[1673985674900,0.7816393,21342.0,21338.0,0.14095976]
[1673985675123,0.63052704,21339.0,21338.0,0.00099544]
[1673985675346,0.63052704,21339.0,21334.0,1.22088464]
[1673985675347,0.95124704,21339.0,21334.0,1.22088464]
[1673985675574,0.92113026,21338.0,21337.0,0.00095682]
[1673985675800,0.64105015,21338.0,21335.0,0.18430952]
[1673985676024,0.4610767,21337.0,21335.0,0.18430952]
[1673985676243,0.1403567,21337.0,21336.0,0.06530275]
[1673985676682,0.4610767,21337.0,21336.0,0.06530275]
[1673985676904,0.27469499,21339.0,21336.0,0.06530275]
[1673985677134,0.94567182,21339.0,21338.0,0.002]
[1673985677353,0.59541499,21339.0,21336.0,0.06530275]
[1673985677571,0.94567182,21339.0,21337.0,0.05340137]
[1673985677796,0.7523389,21338.0,21334.0,0.468717]
[1673985678018,1.03242228,21338.0,21334.0,0.468717]
[1673985678288,0.32072,21337.0,21334.0,0.468717]
[1673985678511,0.46044668,21337.0,21333.0,0.59174726]
[1673985678729,0.46044668,21337.0,21333.0,0.48224726]
[1673985678956,0.32072,21336.0,21333.0,0.01351126]
[1673985679184,0.46044668,21336.0,21333.0,0.01351126]